Workbook

Sheet Information (hidden)
A1: Corning WD - 2023 M&I Water Rates Sch O-5.Z25.xlsm
A2: 01/09/2023
A6: 1/26/2022 | B6: slf | C6: removed construction rates since contractor converted to WIIN Act
A8: 10/26/2022 | B8: JH | C8: Updated file names, title, headings, and date
C9: Updated Linked Input & Output tabs.
C10: Awaiting for 2023 FC (FA-1I) to be completed
A11: 10/27/2022 | C11: 2023 FC (FA-1I) interest rate is the same as FY 2019, no update needed.
A13: 01/09/2023 | B13: KJ | C13: Review

Sheet OUTPUT
A2: =+Information!A1 -> Corning WD - 2023 M&I Water Rates Sch O-5.Z25.xlsm
A3: =+Information!A2 -> 01/09/2023
A4: CENTRAL VALLEY PROJECT
A5: CORNING WATER DISTRICT
A6: CORNING CANAL
A7: CONTRACT NO. 14-06-200-6575-P
A8: 2023 M&I WATER RATES
A9: FOR TIERED PRICING PURPOSES
A10: Category | B10: Component | C10: Cost of Service Rate per Acre-Foot <Sch S-2, A-8, A-11, A-2A> | D10: Full Cost Rate per Acre-Foot <Sch S-2, A-8, A-11, A-2A>
A11: Construction Costs per Acre-Foot | B11: Storage | C11: 0 | D11: TBD
A12: Construction Costs per Acre-Foot | B12: Other Cost | C12: 0 | D12: TBD
A13: Construction Costs per Acre-Foot | B13: Conveyance | C13: 0 | D13: TBD
A14: Construction Costs per Acre-Foot | B14: Conveyance Pumping | C14: 0 | D14: TBD
A15: Construction Costs per Acre-Foot | B15: Direct Pumping | C15: 0 | D15: TBD
A16: Total | B16: Total Capital | C16: =SUM(C11:C15) -> 0 | D16: =SUM(D11:D15) -> 0
A17: O&M Cost per Acre-Foot | B17: Water Marketing | C17: =[1]OUTPUT!$E$161 -> 15.52 | D17: TBD
A18: O&M Cost per Acre-Foot | B18: Conveyance | C18: =[1]OUTPUT!$I$161 -> 0 | D18: TBD
A19: O&M Cost per Acre-Foot | B19: Conveyance Pumping | C19: =[2]OUTPUT!$M$320 -> 0 | D19: TBD
A20: O&M Cost per Acre-Foot | B20: Storage | C20: =[1]OUTPUT!$G$169 -> 17.23 | D20: TBD
A21: O&M Cost per Acre-Foot | B21: Direct Pumping Offset | C21: =[3]Output!$V$47 -> 8.8 | D21: TBD
A22: Total | B22: Total O&M | C22: =SUM(C17:C21) -> 41.55 | D22: =SUM(D17:D21) -> 0
A23: Grand Total | B23: - | C23: =+C16+C22 -> 41.55 | D23: =+D16+D22 -> 0

Sheet Linked Input (hidden)
A1: =+OUTPUT!A2 -> Corning WD - 2023 M&I Water Rates Sch O-5.Z25.xlsm
A2: =+OUTPUT!A3 -> 01/09/2023
B4: Special Rates 2023 Sch S-1.Z25.XLSM
I6: Net Unpaid | K6: Unpaid Construction | M6: FY 2023 | O6: Unpaid
I7: Construction | K7: Annualized Costs | M7: Projected | O7: Construction Rate
B8: Conveyance Pumping | I8: at 9/30/2021 | K8: 8 Remaining Yrs | M8: Deliveries | O8: Per Acre Foot
C9: Corning Pumping Plant
E10: Capital only | I10: =[4]OUTPUT!$M$29 -> 145533.3011 | K10: =+I10/8 -> 18191.66264 | M10: =[4]OUTPUT!$Q$29 -> 5423.285714 | O10: =ROUND(+K10/M10,2) -> 3.35
E11: PUE only | I11: =[4]OUTPUT!$M$30 -> 17102.28899 | K11: =+I11/8 -> 2137.786123 | M11: =[4]OUTPUT!$Q$30 -> 5423.285714 | O11: =ROUND(+K11/M11,2) -> 0.39
I12: =SUM(I10:I11) -> 162635.5901 | O12: =SUM(O10:O11) -> 3.74
B14: Direct Pumping
C15: Corning WD Relift PP | I15: =[4]OUTPUT!$M$60 -> 187415.8093 | K15: =+I15/8 -> 23426.97616 | M15: =[4]OUTPUT!$Q$60 -> 5132.142857 | O15: =ROUND(+K15/M15,2) -> 4.56
B17: Special Rates 2023 Sch S-2.Z25.XLSM
I19: Net Unpaid | K19: Unpaid Construction | O19: =M6 -> FY 2023 | Q19: Unpaid Construction Rate
I20: Construction | K20: Annulized Cost | M20: Annual Interest @ | O20: Projected | Q20: Construction
I21: =I8 -> at 9/30/2021 | K21: =K8 -> 8 Remaining Yrs | M21: =+K36 -> 0.08012 | O21: Deliveries | Q21: only | R21: Interest | S21: Total
C23: Storage | I23: =[5]OUTPUT!$M$19 -> 2158285.3 | K23: =+I23/8 -> 269785.6625 | M23: =+I23*M$21 -> 172921.8182 | O23: =[5]OUTPUT!$S$19 -> 245181.5714 | Q23: =ROUND(+K23/O23,2) -> 1.1 | R23: =ROUND(+M23/O23,2) -> 0.71 | S23: =+Q23+R23 -> 1.81
C25: Conveyance | I25: =[5]OUTPUT!$M$26 -> 1417022.47 | K25: =+I25/8 -> 177127.8087 | M25: =+I25*M$21 -> 113531.8403 | O25: =[5]OUTPUT!$S$26 -> 172696.7143 | Q25: =ROUND(+K25/O25,2) -> 1.03 | R25: =ROUND(+M25/O25,2) -> 0.66 | S25: =+Q25+R25 -> 1.69
C27: Other Costs | I27: =[5]OUTPUT!$M$89 -> 1629023.464 | K27: =+I27/8 -> 203627.933 | M27: =+I27*M$21 -> 130517.3599 | O27: =[5]OUTPUT!$S$89 -> 331768.7143 | Q27: =ROUND(+K27/O27,2) -> 0.61 | R27: =ROUND(+M27/O27,2) -> 0.39 | S27: =+Q27+R27 -> 1
B30: M&I 2023 Sch A-13
C32: M&I COMPOSITE INTEREST RATE FOR CAPITAL | K32: =[6]Manual_Input!K7 -> 0.02375460811
B34: IRR 2023 FC (FA-1I)
C36: FULL COST COMPOSITE INTEREST RATE FOR CAPITAL | K36: 0.08012
B38: Full Cost Rates: | L38: Cost of Service Rates:
B40: Conveyance Pumping Rate Calculation | L40: Conveyance Pumping Rate Calculation
C42: Irrigation Capital Rate | G42: =+O12 -> 3.74 | M42: Irrigation Capital Rate | O42: =+O12 -> 3.74
C44: M&I interest | M44: M&I Interest
F45: =+I12 -> 162635.5901 | H45: Net Unpaid Construction | N45: =+I12 -> 162635.5901 | P45: Net Unpaid Construction
F46: =+K36 -> 0.08012 | H46: Times M&I Composite Interest Rate for Capital | N46: =+K32 -> 0.02375460811 | P46: Times M&I Composite Interest Rate for Capital
F47: =+F45*F46 -> 13030.36348 | N47: =+N45*N46 -> 3863.344708
F48: =+M11 -> 5423.285714 | H48: Divide by 2023 projected deliveries | N48: =+M11 -> 5423.285714 | P48: =H48 -> Divide by 2023 projected deliveries
G49: =ROUND(+F47/F48,2) -> 2.4 | O49: =ROUND(+N47/N48,2) -> 0.71
C51: Total | G51: =+G42+G49 -> 6.14 | M51: Total | O51: =+O42+O49 -> 4.45
B54: Direct Pumping Rate Calculation | L54: Direct Pumping Rate Calculation
C56: Irrigation Construction Rate | G56: =+O15 -> 4.56 | M56: Irrigation Capital Rate | O56: =+O15 -> 4.56
C58: M&I interest | M58: M&I interest
F59: =+I15 -> 187415.8093 | H59: Net Unpaid Construction | N59: =+I15 -> 187415.8093 | P59: Net Unpaid Construction
F60: =+F46 -> 0.08012 | H60: Times M&I Composite Interest Rate for Capital | N60: =+N46 -> 0.02375460811 | P60: Times M&I Composite Interest Rate for Capital
F61: =+F59*F60 -> 15015.75464 | N61: =+N59*N60 -> 4451.989104
F62: =+M15 -> 5132.142857 | H62: =H48 -> Divide by 2023 projected deliveries | N62: =+M15 -> 5132.142857 | P62: =H48 -> Divide by 2023 projected deliveries
G63: =ROUND(+F61/F62,2) -> 2.93 | O63: =ROUND(+N61/N62,2) -> 0.87
C65: Total | G65: =+G56+G63 -> 7.49 | M65: Total | O65: =+O56+O63 -> 5.43
